[Event "Susha Chess Rapid Women 2022"]
[Site "Shusha"]
[Date "2022.09.23"]
[Round "8.1"]
[White "Balajayeva, Khanim"]
[Black "Zawadzka, Jolanta"]
[Result "1/2-1/2"]
[ECO "B22"]
[WhiteElo "2379"]
[BlackElo "2401"]
[Annotator "TA"]
[PlyCount "85"]
[EventDate "2022.09.21"]
[EventType "tourn"]
[EventCountry "AZE"]
[SourceTitle "playchess.com"]
[Source "ChessBase"]
[SourceQuality "1"]
[TimeControl "900+10"]

{[%evp 13,85,8,15,10,11,14,14,0,0,0,16,12,13,17,18,-18,-15,-20,-13,-26,0,0,0,-54,-60,-52,-42,-124,-110,-114,-118,-235,-110,-106,-119,-121,-118,-116,-120,-112,-112,-115,-117,-137,-88,-147,-107,-164,-171,-160,-72,-64,-76,-62,-61,-61,-66,-85,-71,-79,-44,-39,8,8,8,0,0,0,0,0,0,0,0,0]} 1. e4 {[%emt 0:00:01]} c5 {[%emt 0:00:01]} 2. c3 {[%emt 0:00:02]} Nf6 {[%emt 0:00:02]} 3. e5 {[%emt 0:00:01]} Nd5 {[%emt 0:00:02]} 4. Nf3 {[%emt 0:00:03]} e6 {[%emt 0:00:03]} 5. d4 {[%emt 0:00:02]} cxd4 {[%emt 0:00:02]} 6. cxd4 {[%emt 0:00:01]} d6 {[%emt 0:00:04]} 7. Bc4 {[%emt 0:00:06]} Be7 {[%emt 0:00:07]} 8. O-O {[%emt 0:00:15] B22: Sicilian: 2 c3.} O-O {[%emt 0:00:03]} 9. Qe2 {[%emt 0:00:08]} b6 {[%emt 0:00:04]} 10. Bd2 {[%emt 0:02:01]} Bb7 {[%emt 0:00:27]} 11. Nc3 {[%emt 0:00:03]} Nxc3 {[%emt 0:00:35]} 12. Bxc3 {[%emt 0:00:01]} Nd7 {[%emt 0:00:33]} 13. Rad1 {[%emt 0:01:00] d5 is the strong threat.} dxe5 {[%emt 0:01:49]} 14. Nxe5 {[%emt 0:01:41] [#]} Nxe5 $146 {[%emt 0:01:17]} ({Predecessor:} 14... Nf6 15. Nxf7 Rxf7 16. Bxe6 Bd5 17. Bxf7+ Kxf7 18. Rfe1 Bd6 19. a3 Qc7 20. h3 Qb7 {½-½ (60) Budzyn,M (2139)-Peist,J (2346) Reinstorf 2022}) 15. dxe5 {[%emt 0:00:37]} Qc7 {[%emt 0:00:02]} 16. f4 {[%emt 0:00:18]} Rad8 {[%emt 0:03:10]} 17. f5 {[%emt 0:00:44]} exf5 {[%emt 0:01:46]} 18. Rxd8 {[%emt 0:02:41]} (18. e6 $1 $11 fxe6 19. Rxd8 Qxd8 20. Bxe6+ Kh8 21. Rxf5) 18... Rxd8 $15 {[%emt 0:00:59]} 19. Rxf5 {[%emt 0:00:20]} Qc5+ {[%emt 0:00:41]} 20. Kh1 {[%emt 0:00:47] [#]} (20. Kf1 $1 $15) 20... Bd5 $1 $17 {[%emt 0:00:03]} 21. Bxd5 {[%emt 0:03:10]} Qxd5 {[%emt 0:00:03]} 22. a3 {[%emt 0:00:15]} (22. Rf3 $17) 22... Qd3 {[%emt 0:01:37]} (22... Qd1+ $19 {has better winning chances.} 23. Qf1 Qc2) 23. Qxd3 {[%emt 0:00:54]} Rxd3 {[%emt 0:00:01][%mdl 4096] Endgame KRB-KRB} 24. Kg1 {[%emt 0:00:13] [#]} Bxa3 $1 {[%emt 0:00:09][%mdl 512]} 25. Kf1 {[%emt 0:00:52]} (25. Rf4 Bc5+) 25... Bc5 {[%emt 0:00:26]} 26. Ke2 {[%emt 0:00:03]} Rd5 {[%emt 0:00:16]} 27. Rf4 {[%emt 0:00:29] Prevents Bd4.} b5 {[%emt 0:00:40]} 28. Kf3 {[%emt 0:00:23]} h6 {[%emt 0:02:18]} (28... Rd1 $142 29. Ke2 Rg1) 29. h4 {[%emt 0:00:24]} (29. Ke4 $142 Rd1 30. b4) 29... Bb6 {[%emt 0:00:14]} 30. Rg4 {[%emt 0:00:40]} (30. Ke4 $17 Rc5 31. g3) 30... h5 $19 {[%emt 0:00:19]} 31. Rg5 {[%emt 0:00:13] [#]} a5 {[%emt 0:00:11]} (31... Bd8 $142 $1 {[%cal Rd8g5]} 32. Rf5 (32. Rxh5 $2 g6 $19) 32... g6) 32. e6 $17 {[%emt 0:00:14]} fxe6 {[%emt 0:00:25]} 33. Rxg7+ {[%emt 0:00:01]} Kf8 {[%emt 0:00:01] Threatens to win with ...Rd3+.} 34. Rb7 {[%emt 0:00:07]} Bd8 {[%emt 0:00:08]} 35. g3 {[%emt 0:00:40]} b4 {[%emt 0:00:02]} 36. Bg7+ {[%emt 0:00:06]} Kg8 {[%emt 0:00:11]} (36... Ke8 $5 {[%cal Rd5f5]} 37. Bh8 Be7 38. Rb8+ Kf7 $17) 37. Ke4 {[%emt 0:00:03]} Rd2 {[%emt 0:01:36]} (37... a4 $15 {is more appropriate.} 38. Be5 a3 39. bxa3 bxa3 40. Rg7+ Kf8) 38. Bd4 $11 {[%emt 0:00:12] Black must now prevent Rb8. The position is equal.} Kf8 {[%emt 0:00:28]} 39. Rb5 {[%emt 0:01:07]} Rg2 {[%emt 0:00:24]} 40. Kf3 {[%emt 0:00:04]} Rd2 {[%emt 0:00:03]} 41. Ke3 {[%emt 0:00:26]} Rg2 {[%emt 0:00:02]} 42. Kf3 {[%emt 0:00:10]} Rd2 {[%emt 0:00:01]} 43. Ke3 {[%emt 0:00:11] Whites escaped into a draw.  Weighted Error Value: White=0.14 (very precise) /Black=0.13 (very precise)} 1/2-1/2

[Event "Susha Chess Rapid Women 2022"]
[Site "Shusha"]
[Date "2022.09.23"]
[Round "8.2"]
[White "Efroimski, Marsel"]
[Black "Ozturk Orenli, Kubra"]
[Result "1/2-1/2"]
[ECO "C48"]
[WhiteElo "2462"]
[BlackElo "2319"]
[Annotator "TA"]
[PlyCount "130"]
[EventDate "2022.09.21"]
[EventType "tourn"]
[EventCountry "AZE"]
[SourceTitle "playchess.com"]
[Source "ChessBase"]
[SourceQuality "1"]
[TimeControl "900+10"]

{[%evp 9,130,20,19,13,29,27,29,24,23,12,14,21,44,14,20,14,33,34,33,35,49,37,53,52,57,54,64,48,58,40,85,85,85,64,69,49,139,133,419,427,440,425,418,302,284,283,278,7,7,11,20,-52,0,0,0,0,0,-80,-41,-80,-80,-92,-80,-93,-80,-80,-75,-116,0,0,0,0,0,0,0,0,0,0,0,0,0,0,0,0,0,0,0,0,0,0,0,0,0,0,0,0,0,0,0,0,0,0,0,0,0,0,0,0,0,0,0,0,0,0,0,0,0,0,0,0,0,0,0]} 1. e4 {[%emt 0:00:00]} e5 {[%emt 0:00:01]} 2. Nf3 {[%emt 0:00:01]} Nc6 3. Nc3 Nf6 {[%emt 0:00:02]} 4. Bb5 {[%emt 0:00:01]} Nd4 {[%emt 0:00:44]} 5. Bc4 {[%emt 0:00:03]} d6 {[%emt 0:01:08]} 6. Ng5 {[%emt 0:00:05] C48: Four Knights: 4 Bb5, replies other than 4...Bb4.} Ne6 {[%emt 0:01:51]} 7. Nxe6 {[%emt 0:00:02]} Bxe6 {[%emt 0:00:09]} 8. Bxe6 {[%emt 0:00:02] White has an edge.} fxe6 {[%emt 0:00:01]} 9. d4 {[%emt 0:00:00]} exd4 {[%emt 0:00:39]} 10. Qxd4 {[%emt 0:00:02]} e5 {[%emt 0:00:22]} 11. Qc4 {[%emt 0:00:30]} Qd7 {[%emt 0:00:43]} 12. Bg5 {[%emt 0:00:21] [#]} Be7 $146 {[%emt 0:00:50]} (12... Qf7 $5 {[%cal Rf7c4]} 13. Qa4+ Qd7 $14) ({Predecessor:} 12... Qf7 13. Qa4+ c6 14. O-O Be7 15. Bxf6 Bxf6 16. Rad1 Be7 17. Nd5 O-O 18. Nxe7+ Qxe7 {1-0 (34) Carruez Berges,F (2205)-Juberias,S (2131) Aragon 2005}) 13. O-O-O {[%emt 0:00:34]} O-O-O {[%emt 0:00:48]} 14. Be3 {[%emt 0:01:45]} a6 {[%emt 0:03:04]} 15. f3 {[%emt 0:00:02]} Kb8 {[%emt 0:00:05]} 16. Rd3 {[%emt 0:00:42]} Qc6 {[%emt 0:02:50]} 17. Qb3 {[%emt 0:00:06]} h5 {[%emt 0:00:05]} 18. a4 {[%emt 0:00:23]} h4 {[%emt 0:00:08]} 19. Rhd1 {[%emt 0:00:09]} Rc8 {[%emt 0:00:59]} 20. Na2 {[%emt 0:00:40][%cal Bc3a2,Ba2b4,Bb4a6,Ba6c5,Bc5e6][%mdl 32]} Ka8 {[%emt 0:00:14]} 21. Nb4 {[%emt 0:00:07]} Qd7 {[%emt 0:00:13]} 22. Rc3 {[%emt 0:01:33][%cal Ob4c6]} Rb8 {[%emt 0:00:37]} ({Black should try} 22... h3 $14) 23. Qc4 $1 $16 {[%emt 0:00:55] White is more active.} c6 $2 {[%emt 0:01:19][%mdl 8192] [#]} (23... Rbc8 $16) 24. Nxa6 $1 $18 {[%emt 0:00:20][%mdl 512]} Rbc8 {[%emt 0:00:30]} 25. Nc5 {[%emt 0:00:14]} Qe8 {[%emt 0:00:45]} 26. Ne6 {[%emt 0:02:53]} d5 {[%emt 0:00:20]} 27. exd5 {[%emt 0:00:07]} Nxd5 {[%emt 0:00:03]} 28. Rxd5 $2 {[%emt 0:00:13]} ({Weaker is} 28. Nxg7 Qf7 29. Rxd5 Qxd5 $14) (28. Rb3 $18) 28... cxd5 $11 {[%emt 0:00:11]} 29. Qxd5 {[%emt 0:00:39]} Qxa4 {[%emt 0:00:37] White must now prevent ...Qa1+.} 30. Qxe5 {[%emt 0:02:26]} (30. Rb3 $11 Qa6 31. Kb1 Qf1+ 32. Bc1) 30... Rxc3 {[%emt 0:00:27]} (30... Qa1+ $15 31. Kd2 Bb4 32. Nc7+ Rxc7 $1 33. Qxc7 Qxb2) 31. bxc3 {[%emt 0:00:50] White wants to mate with Nc7+. Chess con chili.} ({Much worse is} 31. Qxc3 Bb4 32. b3 (32. Nc7+ $2 Kb8 $19) 32... Bxc3 $15) 31... Qa3+ $1 {[%emt 0:00:20]} 32. Kb1 {[%emt 0:00:44] Nc7+ would kill now.} Bd6 {[%emt 0:00:06]} 33. Qb5 {[%emt 0:00:57] [#]} (33. Qxg7 $11 {keeps the balance.} Rc8 34. Qd7 Rxc3 35. Qd8+ Bb8 36. Bf4 Qb4+ 37. Kc1) 33... Qa6 $1 $17 {[%emt 0:00:13]} 34. Qxa6+ {[%emt 0:00:53]} bxa6 {[%emt 0:00:01]} 35. Nxg7 {[%emt 0:00:26]} Bxh2 $15 {[%emt 0:00:09][%mdl 4096] Endgame KRB-KBN} 36. Bd4 {[%emt 0:00:10] Against Be5} Rg8 {[%emt 0:00:17]} 37. Nf5 {[%emt 0:00:29]} Bg3 {[%emt 0:00:04]} 38. Bf6 {[%emt 0:00:32]} Rf8 {[%emt 0:00:17]} (38... h3 $17 {Hoping for ...h2.} 39. gxh3 Rf8 40. Nxg3 Rxf6) 39. Bxh4 $11 {[%emt 0:00:04] The position is equal.} Rxf5 {[%emt 0:00:03]} 40. Bxg3 {[%emt 0:00:01] KR-KB} Rg5 {[%emt 0:00:01]} 41. Bd6 {[%emt 0:00:18]} Rxg2 {[%emt 0:00:02]} 42. f4 {[%emt 0:00:01]} Kb7 {[%emt 0:00:03]} 43. Kb2 {[%emt 0:00:06]} Kc6 {[%emt 0:00:02]} 44. Be5 {[%emt 0:00:05]} Rf2 {[%emt 0:00:13]} 45. Kb3 {[%emt 0:00:01]} Kb5 {[%emt 0:00:15]} 46. c4+ {[%emt 0:00:14]} Kc5 {[%emt 0:00:04]} 47. c3 {[%emt 0:00:03] aiming for Bd4+.} Rf1 {[%emt 0:00:14]} 48. Bd4+ {[%emt 0:00:03]} Kc6 {[%emt 0:00:05]} 49. Be5 {[%emt 0:00:02]} Rf2 {[%emt 0:00:18]} 50. Ka3 $1 {[%emt 0:00:09]} Rf1 {[%emt 0:00:35]} 51. Kb3 {[%emt 0:00:08]} Rg1 {[%emt 0:00:01]} 52. Ka3 {[%emt 0:00:14]} Rd1 {[%emt 0:00:04]} 53. Kb3 {[%emt 0:00:03]} Rd7 {[%emt 0:00:02]} 54. f5 {[%emt 0:00:50]} Rb7+ {[%emt 0:00:04]} 55. Ka4 {[%emt 0:00:09]} Kc5 {[%emt 0:00:44]} 56. Ka5 {[%emt 0:01:41]} Kxc4 {[%emt 0:00:08] And now ...Rb5+ would win.} 57. Bd4 {[%emt 0:00:02]} Rb5+ {[%emt 0:00:12]} 58. Kxa6 {[%emt 0:00:01]} Rxf5 {[%emt 0:00:01]} 59. Kb6 {[%emt 0:00:05]} Rg5 {[%emt 0:00:07]} 60. Ka6 {[%emt 0:00:24]} Rg6+ {[%emt 0:00:12]} 61. Ka5 {[%emt 0:00:07]} Rc6 {[%emt 0:00:19]} 62. Bg7 {[%emt 0:00:22]} Rc7 {[%emt 0:00:10]} 63. Bd4 {[%emt 0:00:04]} Rd7 {[%emt 0:00:09]} 64. Ka6 {[%emt 0:00:03]} Rxd4 {[%emt 0:00:02]} 65. cxd4 {[%emt 0:00:02]} Kxd4 {[%emt 0:00:00] Black escapes into a draw.  Weighted Error Value: White=0.21 (precise) /Black=0.16 (very precise)} 1/2-1/2

[Event "Susha Chess Rapid Women 2022"]
[Site "Shusha"]
[Date "2022.09.23"]
[Round "8.3"]
[White "Arabidze, Meri"]
[Black "Dzagnidze, Nana"]
[Result "0-1"]
[ECO "E21"]
[WhiteElo "2422"]
[BlackElo "2526"]
[Annotator "TA"]
[PlyCount "106"]
[EventDate "2022.09.21"]
[EventType "tourn"]
[EventCountry "AZE"]
[SourceTitle "playchess.com"]
[Source "ChessBase"]
[SourceQuality "1"]
[TimeControl "900+10"]

{[%evp 9,106,14,34,-3,28,29,39,32,39,41,39,42,46,29,42,35,59,45,76,81,73,44,38,37,48,0,0,-17,0,0,0,0,0,-91,-84,-285,-85,-100,-93,-293,-285,-285,-283,-283,-279,-271,-275,-354,-347,-350,-343,-460,-452,-602,-589,-618,-563,-662,-657,-702,-692,-715,-702,-797,-806,-797,-801,-738,-586,-596,-578,-587,-596,-588,-575,-607,-487,-956,-940,-899,-864,-852,-826,-968,-994,-1034,-1002,-935,-893,-812,-761,-1506,-1311,-1174,-1253,-1216,-1122,-1118,-951]} 1. d4 {[%emt 0:00:02]} Nf6 {[%emt 0:00:03]} 2. c4 {[%emt 0:00:01]} e6 {[%emt 0:00:02]} 3. Nc3 {[%emt 0:00:05]} Bb4 {[%emt 0:00:02]} 4. Nf3 {[%emt 0:00:04]} O-O {[%emt 0:00:47]} 5. Bg5 {[%emt 0:00:02]} d5 {[%emt 0:01:46]} 6. a3 {[%emt 0:00:55] D38: Queen's Gambit Declined: Ragozin Defence (4 Nf3 Bb4).} Be7 {[%emt 0:00:32]} (6... Bxc3+ $5 7. bxc3 Nbd7 $11) 7. e3 {[%emt 0:00:12]} Ne4 {[%emt 0:02:40] [#]} 8. Bxe7 $146 {[%emt 0:01:03] White is slightly better.} ({Predecessor:} 8. Bf4 Nc6 9. Bd3 Bd6 10. Bxd6 Nxc3 11. bxc3 cxd6 12. O-O dxc4 13. Bxc4 d5 14. Bd3 {1-0 (37) Alvarez Garcia,J-Solorzano,J (2275) Cajas 1989}) 8... Qxe7 {[%emt 0:00:06]} 9. Rc1 {[%emt 0:00:12]} Nxc3 {[%emt 0:00:42]} 10. Rxc3 {[%emt 0:00:03]} c6 {[%emt 0:00:10]} 11. Bd3 {[%emt 0:00:16]} Nd7 {[%emt 0:00:02]} 12. Qc2 {[%emt 0:01:16]} h6 {[%emt 0:00:41]} 13. O-O {[%emt 0:00:12]} dxc4 {[%emt 0:00:56]} 14. Bxc4 {[%emt 0:00:01]} e5 {[%emt 0:00:11]} 15. Ba2 {[%emt 0:00:30]} exd4 {[%emt 0:03:44]} 16. exd4 {[%emt 0:00:06]} Nf6 {[%emt 0:00:09]} 17. Bb1 {[%emt 0:04:11]} (17. Re1 $14 Qd6 18. h3) 17... Be6 $11 {[%emt 0:00:19]} 18. Ne5 {[%emt 0:00:02]} Rfd8 {[%emt 0:00:02]} 19. Rf3 {[%emt 0:00:31]} Rac8 {[%emt 0:01:46]} ({Don't do} 19... Rxd4 20. Rxf6 $1 Qxf6 21. Qh7+ Kf8 22. Qh8+ Ke7 23. Nxc6+ (23. Qxa8 Qxe5 24. Qxb7+ Rd7 $11) 23... bxc6 24. Qxa8 $11) 20. Re1 {[%emt 0:02:41][%cal Oe5g4] Strongly threatening Ng4!} Rxd4 {[%emt 0:00:15]} 21. Rxf6 {[%emt 0:00:41]} Qxf6 $17 {[%emt 0:00:02]} 22. Qh7+ {[%emt 0:01:58]} Kf8 {[%emt 0:00:01][%cal Of6e5,Bg8f8,Bf8e7,Be7f6][%mdl 32]} 23. Ng4 {[%emt 0:00:28] [#]} Qd8 {[%emt 0:00:47]} ({But not} 23... Rd1 $6 24. Rxd1 Bxg4 25. Re1 $11) 24. Qh8+ $2 {[%emt 0:00:08]} (24. Nxh6 $17 {keeps fighting.} gxh6 25. Qxh6+ Ke8 26. Rxe6+ fxe6 27. Qg6+ Kf8 28. Qh6+ Kf7 29. Qg6+ Kf8 30. Qh6+ Kf7 31. Qg6+ Kf8) 24... Ke7 $19 {[%emt 0:00:01]} 25. Qxg7 {[%emt 0:00:01][%cal Oe1e6] Rxe6+! would kill now.} Qh8 {[%emt 0:00:12]} 26. Qxh8 {[%emt 0:01:28]} ({Don't go for} 26. Rxe6+ $2 Kxe6 27. Bf5+ Kd6 28. Qxd4+ Qxd4 $19) 26... Rxh8 {Chess con chili.} 27. Ne3 {And now Nf5+ would win.} Kf6 {[%emt 0:00:18] Against Nf5} 28. g3 {[%emt 0:00:29]} Rhd8 {[%emt 0:00:27]} 29. Kg2 {[%emt 0:00:11]} Rd2 {[%emt 0:00:05]} 30. b4 {[%emt 0:00:01]} Rb2 {[%emt 0:00:20] Black is clearly winning.} 31. Be4 {[%emt 0:01:01]} Rdd2 {[%emt 0:00:21][%cal Bd8d2,Bd2b2,Bb2b4,Bb4f4][%mdl 32]} 32. Rf1 {[%emt 0:00:03]} Rb3 {[%emt 0:00:31][%csl LRa3,LRe3]} 33. Kf3 {[%emt 0:00:02]} Rxa3 {[%emt 0:00:06]} 34. g4 {[%emt 0:00:06]} Rb2 {[%emt 0:00:15]} 35. h4 {[%emt 0:00:10]} Rxb4 {[%emt 0:00:02]} 36. Rg1 {[%emt 0:00:12]} Ke5 {[%emt 0:00:40]} 37. Bc2 {[%emt 0:00:45]} Rf4+ {[%emt 0:00:30]} 38. Ke2 {[%emt 0:00:03]} Rxe3+ {[%emt 0:00:42]} 39. Kxe3 {[%emt 0:00:27]} Rxg4 {[%emt 0:00:02][%mdl 4096] Endgame KRB-KRB} 40. Ra1 {[%emt 0:00:22]} Rxh4 {[%emt 0:00:09]} 41. Rxa7 {[%emt 0:00:02]} Rb4 {[%emt 0:00:15]} 42. f4+ {[%emt 0:00:10]} Kf6 {[%emt 0:00:10]} 43. Be4 {[%emt 0:00:07]} (43. Ra8 $142) 43... h5 {[%emt 0:00:11][%cal Bh6h5,Bh5h4,Bh4h3][%mdl 32]} 44. Ra5 {[%emt 0:00:17]} h4 {[%emt 0:00:25][%cal Ob4e4] Threatens to win with ...Rxe4+!} 45. Rh5 {[%emt 0:00:02]} h3 {[%emt 0:00:01] White must now prevent ...Rb2.} 46. Rh6+ {[%emt 0:00:24]} Ke7 {[%emt 0:00:28]} 47. f5 {[%emt 0:00:16]} Bd5 {[%emt 0:00:20]} 48. Bd3 {[%emt 0:00:12]} Bg2 {[%emt 0:00:22]} 49. Kf2 {[%emt 0:00:02]} Rd4 {[%emt 0:00:13]} 50. Bb1 {[%emt 0:00:13]} Rd1 {[%emt 0:00:02]} 51. f6+ {[%emt 0:00:13]} Kd6 {[%emt 0:00:01]} 52. Bh7 {[%emt 0:00:06]} Ke5 {[%emt 0:00:06]} 53. Kg3 {[%emt 0:00:12]} Rf1 {[%emt 0:00:15] Weighted Error Value: White=0.44/Black=0.14 (very precise)} 0-1

[Event "Susha Chess Rapid Women 2022"]
[Site "Shusha"]
[Date "2022.09.23"]
[Round "8.4"]
[White "Beydullayeva, Govhar"]
[Black "Mammadova, Gulnar"]
[Result "1/2-1/2"]
[ECO "B06"]
[WhiteElo "2346"]
[BlackElo "2382"]
[Annotator "TA"]
[PlyCount "70"]
[EventDate "2022.09.21"]
[EventType "tourn"]
[EventCountry "AZE"]
[SourceTitle "playchess.com"]
[Source "ChessBase"]
[SourceQuality "1"]
[TimeControl "900+10"]

{[%evp 10,70,33,18,43,48,63,31,64,62,59,55,61,64,87,73,86,66,72,81,72,86,116,87,100,84,96,89,103,94,89,89,104,-118,-101,-114,-122,-111,-60,-61,-52,-218,0,0,0,0,-5,0,0,-115,-124,-29990,0,0,0,0,0,0,0,0,0,0,0]} 1. d4 {[%emt 0:00:05]} g6 {[%emt 0:00:01]} 2. e4 {[%emt 0:00:03]} Bg7 {[%emt 0:00:02]} 3. c4 {[%emt 0:00:02]} d6 {[%emt 0:00:06]} 4. Nc3 {[%emt 0:00:02]} e5 {[%emt 0:00:07]} 5. d5 {[%emt 0:00:01]} a5 {[%emt 0:00:07]} 6. Be3 {[%emt 0:00:51]} f5 {[%emt 0:00:33] A42: Modern Defence: Averbakh Variation.} 7. exf5 {[%emt 0:00:08]} Bxf5 {[%emt 0:00:45] [#]} 8. Nge2 $146 {[%emt 0:00:02]} (8. Bd3 $5 {[%cal Rd3f5]}) ({Predecessor:} 8. Bd3 Nf6 9. Bxf5 gxf5 10. Nf3 Ng4 11. Ng5 O-O 12. Ne6 Nxe3 13. fxe3 Qh4+ 14. g3 Qxc4 15. Nxf8 Bxf8 {1-0 (25) Cruz Lopez Claret,C (2326)-Lillo Ferrer,J (2151) San Sebastian 2011}) 8... Nf6 {[%emt 0:00:07] White is slightly better.} 9. Ng3 {[%emt 0:00:06]} O-O {[%emt 0:01:28]} 10. Be2 {[%emt 0:00:08] Inhibits Ng4.} Nbd7 {[%emt 0:00:09]} 11. h4 {[%emt 0:00:29]} h5 {[%emt 0:00:42]} 12. f3 {[%emt 0:04:09]} b6 {[%emt 0:01:28]} 13. Qd2 {[%emt 0:00:43] White is more active.} Nc5 {[%emt 0:00:12]} 14. Nxf5 {[%emt 0:00:37]} gxf5 {[%emt 0:00:02]} 15. O-O-O {[%emt 0:00:03]} f4 {[%emt 0:01:16]} 16. Bf2 {[%emt 0:00:32]} a4 {[%emt 0:00:31][%cal Ba5a4,Ba4a3][%mdl 32]} 17. Kb1 {[%emt 0:00:28]} Qd7 {[%emt 0:00:13]} 18. Qc2 {[%emt 0:03:11]} Rae8 {[%emt 0:02:40]} 19. Rhg1 {[%emt 0:00:34]} e4 {[%emt 0:00:14]} 20. Bxc5 {[%emt 0:00:16]} bxc5 {[%emt 0:00:02]} 21. fxe4 $2 {[%emt 0:00:12]} (21. Nxe4 $2 Nxe4 22. fxe4 Qe7 $19) (21. Nxa4 $16 {keeps the pressure on.} Re7 22. Nc3) 21... a3 $1 $17 {[%emt 0:02:05]} 22. g3 {[%emt 0:00:32]} f3 {[%emt 0:00:38]} 23. Bxf3 {[%emt 0:00:01] [#]} Ng4 {[%emt 0:00:01]} (23... Nxd5 $1 $17 {[%mdl 512]} 24. Rxd5 (24. Bxh5 $2 Nxc3+ 25. bxc3 Rb8+ 26. Kc1 Bh6+ 27. Rd2 Rb2 $19) 24... Rxf3) 24. Bxg4 $15 {[%emt 0:00:27]} Qxg4 {[%emt 0:00:09]} 25. Rgf1 $2 {[%emt 0:03:11]} ({White should play} 25. Rd3 $15) 25... Bxc3 $2 {[%emt 0:02:20]} ({Better is} 25... Rxf1 $1 $19 26. Rxf1 Qxg3) 26. Qxc3 $11 {[%emt 0:00:25]} ({Much weaker is} 26. bxc3 Rxf1 27. Rxf1 Qxg3 $15) 26... Qxe4+ {[%emt 0:00:21]} 27. Qc2 {[%emt 0:00:22]} Qxc2+ {[%emt 0:00:21]} 28. Kxc2 {[%emt 0:00:00][%mdl 4096] Endgame KRR-KRR} Re2+ {[%emt 0:00:28]} 29. Kb3 {[%emt 0:00:31] [#]} (29. Kc3 $11) 29... Rb8+ $1 $17 {[%emt 0:00:38]} ({Reject} 29... axb2 $6 30. Rxf8+ Kxf8 31. a4 $14) 30. Kxa3 $2 {[%emt 0:00:01][%mdl 8192] [#]} (30. Kc3 $17) 30... Rbxb2 $2 {[%emt 0:00:10]} (30... Re3+ $1 {mates} 31. Rd3 Rxd3+ 32. Ka4 Rb4+ 33. Ka5 Rxb2 34. a4 Ra3 35. Rf5 Rb4 36. Rg5+ Kf7 37. Rf5+ Ke8 38. Re5+ dxe5 39. Ka6 Raxa4#) 31. Rde1 $11 {[%emt 0:01:03] Strongly threatening Rxe2. The position is equal.} Rxa2+ {[%emt 0:00:17]} 32. Kb3 {[%emt 0:00:01]} Rab2+ {[%emt 0:00:09]} 33. Kc3 {[%emt 0:00:02]} Rbc2+ {[%emt 0:00:30]} 34. Kb3 {[%emt 0:00:14]} Rb2+ {[%emt 0:00:06]} 35. Kc3 {[%emt 0:00:01]} Rbc2+ {[%emt 0:00:30] Weighted Error Value: White=0.49/Black=0.44} 1/2-1/2